bitfinex-derivatives/quotes_BTCF0:USTF0_20241029
["timestamp","ask_amount","ask_price","bid_price","bid_amount"]
[1730160268255,0.17155,69925.0,69924.0,0.06439]
[1730160268454,0.17755,69925.0,69924.0,0.06439]
[1730160269359,0.17555,69925.0,69924.0,0.06439]
[1730160269954,0.07239,69925.0,69924.0,0.06439]
[1730160270280,0.10816,69925.0,69924.0,0.06439]
[1730160270466,0.10816,69925.0,69924.0,0.15461395]
[1730160271266,0.10816,69925.0,69924.0,0.06439]
[1730160271267,0.17255,69925.0,69924.0,0.06439]
[1730160271562,0.16061395,69925.0,69924.0,0.06439]
[1730160271761,0.19738395,69925.0,69920.0,0.0302]
[1730160272065,0.15461695,69921.0,69920.0,0.094594]
[1730160273363,0.15461695,69921.0,69920.0,0.08721412]
[1730160273758,0.15461695,69921.0,69920.0,0.05701412]
[1730160273967,0.064394,69920.0,69919.0,0.05701412]
[1730160274554,0.064394,69920.0,69918.0,0.064396]
[1730160274754,0.064394,69920.0,69919.0,0.05709007]
[1730160275355,0.064394,69920.0,69918.0,0.064396]
[1730160275763,0.064394,69920.0,69919.0,0.064395]
[1730160276471,0.070394,69920.0,69919.0,0.064395]
[1730160276860,0.066394,69920.0,69919.0,0.064395]
[1730160277063,0.069394,69920.0,69919.0,0.064395]
[1730160277255,0.069394,69920.0,69919.0,0.13591228]
[1730160277461,0.069394,69920.0,69919.0,0.22013043]
[1730160278862,0.069394,69920.0,69919.0,0.13591228]
[1730160279466,0.069394,69920.0,69919.0,0.22015369]
[1730160279776,0.069394,69920.0,69919.0,0.13591228]
[1730160280272,0.069394,69920.0,69919.0,0.22011012]
[1730160280660,0.069394,69920.0,69919.0,0.13591228]
[1730160281871,0.069394,69920.0,69919.0,0.22013298]
[1730160283271,0.170514,69920.0,69919.0,0.22013298]
[1730160284168,0.170514,69920.0,69919.0,0.0842207]
[1730160284372,0.005,69920.0,69919.0,0.0842207]
[1730160284575,0.10612,69920.0,69919.0,0.1486157]
[1730160285288,0.10612,69920.0,69919.0,0.064395]
[1730160285668,0.10612,69920.0,69919.0,0.14831677]
[1730160290779,0.10412,69920.0,69919.0,0.14831677]
[1730160290980,0.003,69920.0,69919.0,0.14831677]
[1730160291285,0.10412,69920.0,69919.0,0.14831677]
[1730160291771,0.10512,69920.0,69919.0,0.14831677]
[1730160292571,0.10412,69920.0,69919.0,0.14831677]
[1730160293476,0.10412,69920.0,69919.0,0.23387437]
[1730160293973,0.10412,69920.0,69919.0,0.23418926]
[1730160294370,0.10412,69920.0,69919.0,0.14831677]
[1730160294682,0.10412,69920.0,69919.0,0.23854927]
[1730160295181,0.168514,69920.0,69919.0,0.1484012]
[1730160295685,0.168514,69920.0,69919.0,0.23430385]
[1730160296276,0.168514,69920.0,69919.0,0.1484012]
[1730160296470,0.168514,69920.0,69919.0,0.23430353]
[1730160297472,0.168514,69920.0,69919.0,0.23430546]
[1730160298872,0.168514,69920.0,69919.0,0.1484012]
[1730160299777,0.168514,69920.0,69919.0,0.14882903]
[1730160301188,0.067394,69920.0,69919.0,0.14882903]
[1730160302676,0.068394,69920.0,69919.0,0.14882903]
[1730160303076,0.068394,69920.0,69919.0,0.14872797]
[1730160303784,0.067394,69920.0,69919.0,0.14872797]
[1730160304078,0.069394,69920.0,69919.0,0.14872797]
[1730160305372,0.067394,69920.0,69919.0,0.14872797]
[1730160305574,0.069394,69920.0,69919.0,0.14872797]
[1730160305985,0.069394,69920.0,69919.0,0.08433297]
[1730160307875,0.073394,69920.0,69919.0,0.08433297]
[1730160308276,0.077394,69920.0,69919.0,0.08433297]
[1730160313888,0.064395,69919.0,69918.0,0.04534475]
[1730160314186,0.425195,69919.0,69918.0,0.04534475]
[1730160314494,0.064397,69917.0,69916.0,0.13597028]
[1730160314684,0.064397,69917.0,69916.0,0.13595863]
[1730160315886,0.064397,69917.0,69916.0,0.13594718]
[1730160316084,0.068397,69917.0,69916.0,0.13594718]
[1730160316487,0.068397,69917.0,69916.0,0.064397]
[1730160317287,0.071397,69917.0,69916.0,0.064397]
[1730160318285,0.064401,69914.0,69912.0,0.17613676]
[1730160318486,0.064401,69914.0,69913.0,0.064401]
[1730160318685,0.0902325,69915.0,69909.0,0.08804973]
[1730160318885,0.0644,69914.0,69913.0,0.07154175]
[1730160319090,0.064402,69912.0,69909.0,0.00214547]
[1730160319287,0.1546355,69910.0,69909.0,0.00214547]
[1730160319891,0.1546355,69910.0,69906.0,0.3608]
[1730160319892,0.064406,69907.0,69906.0,0.3608]
[1730160320198,0.064408,69905.0,69904.0,0.07153702]
[1730160320401,0.4510325,69907.0,69902.0,0.07153702]
[1730160320586,0.1546425,69903.0,69901.0,0.07153702]
[1730160320788,0.0902325,69903.0,69901.0,0.07153702]
[1730160321297,0.064411,69902.0,69901.0,0.064411]
[1730160321889,0.064411,69902.0,69901.0,0.13594802]
[1730160322087,0.064411,69902.0,69901.0,0.064411]
[1730160322283,0.064411,69902.0,69901.0,0.13586564]
[1730160322483,0.065411,69902.0,69901.0,0.13586564]
[1730160322894,0.066411,69902.0,69901.0,0.13586564]
[1730160324296,0.002,69902.0,69900.0,0.16168714]
[1730160324508,0.165452,69901.0,69900.0,0.07145464]
[1730160324800,0.165452,69901.0,69899.0,0.13586764]
[1730160325392,0.165452,69901.0,69899.0,0.07145464]
[1730160325586,0.165452,69901.0,69900.0,0.064413]
[1730160326103,0.10104,69901.0,69900.0,0.1546455]
[1730160326999,0.10204,69901.0,69900.0,0.1546455]
[1730160327196,0.10304,69901.0,69900.0,0.1546455]
[1730160328395,0.167452,69901.0,69900.0,0.1546455]
[1730160332696,0.066412,69901.0,69900.0,0.1546455]
[1730160332893,0.167452,69901.0,69900.0,0.1546455]
[1730160336402,0.167452,69901.0,69899.0,0.3608]
[1730160336403,0.064413,69900.0,69899.0,0.3608]
[1730160336793,0.064413,69900.0,69896.0,0.13587064]
[1730160337010,0.064414,69898.0,69897.0,0.064415]
[1730160338402,0.066414,69898.0,69897.0,0.064415]
[1730160338999,0.002,69898.0,69890.0,0.44670426]
[1730160339197,0.0655,69897.0,69896.0,0.05713576]
[1730160339402,0.129915,69897.0,69896.0,0.05713576]
[1730160339603,0.230835,69897.0,69896.0,0.05713576]
[1730160340508,0.064416,69896.0,69895.0,0.05713576]
[1730160340704,0.064417,69895.0,69894.0,0.05713576]
[1730160340899,0.1546495,69895.0,69894.0,0.05713576]
[1730160341213,0.064418,69894.0,69893.0,0.05713576]
[1730160341403,0.1546505,69894.0,69893.0,0.05713576]
[1730160341599,0.0902325,69894.0,69890.0,0.3608]
[1730160341813,0.064421,69891.0,69890.0,0.3608]
[1730160342907,0.064421,69891.0,69890.0,0.25650558]
[1730160343708,0.166381,69891.0,69890.0,0.25650558]
[1730160344210,0.167381,69891.0,69890.0,0.25650558]
[1730160344407,0.2576135,69891.0,69890.0,0.25650558]
[1730160345500,0.2576135,69891.0,69886.0,0.0021462]
[1730160345501,0.064425,69887.0,69886.0,0.0021462]
[1730160346896,0.071425,69887.0,69886.0,0.0021462]
[1730160347812,0.064425,69887.0,69886.0,0.0021462]
[1730160348008,0.077425,69887.0,69886.0,0.0021462]
[1730160348601,0.09741546,69887.0,69886.0,0.0021462]
[1730160349703,0.09741546,69887.0,69886.0,0.05929813]
[1730160350104,0.09741546,69887.0,69886.0,0.0021462]
[1730160352118,0.013,69887.0,69886.0,0.064425]
[1730160352311,0.11396,69887.0,69886.0,0.064425]
[1730160355022,0.013,69887.0,69886.0,0.064425]
[1730160361436,0.10096,69895.0,69886.0,0.493705]
[1730160361629,0.10096,69895.0,69894.0,0.1546505]
[1730160362022,0.10096,69895.0,69894.0,0.064418]
[1730160362324,0.1911925,69895.0,69894.0,0.064418]
[1730160362526,0.0902325,69895.0,69894.0,0.064418]
[1730160362732,0.1042325,69895.0,69894.0,0.064418]
[1730160363132,0.1182325,69895.0,69894.0,0.064418]
[1730160363518,0.1546495,69895.0,69894.0,0.064418]
[1730160363829,0.1796495,69895.0,69894.0,0.064418]
[1730160365261,0.1726495,69895.0,69894.0,0.064418]
[1730160365644,0.1636495,69895.0,69894.0,0.064418]
[1730160366142,0.1616495,69895.0,69894.0,0.064418]
[1730160366443,0.1606495,69895.0,69894.0,0.064418]
[1730160371947,0.064419,69893.0,69892.0,0.0714521]
[1730160372248,0.006,69895.0,69890.0,0.0714521]
[1730160372451,0.064422,69890.0,69889.0,0.0714521]
[1730160372754,0.064423,69889.0,69888.0,0.0714521]
[1730160373252,0.064424,69888.0,69887.0,0.0714521]
[1730160373451,0.1546565,69888.0,69887.0,0.1565906]
[1730160373753,0.1546565,69888.0,69887.0,0.0714521]
[1730160374246,0.0902325,69888.0,69887.0,0.0714521]
[1730160374449,0.064426,69885.0,69884.0,0.0714521]
[1730160374651,0.064426,69885.0,69877.0,0.4510325]
[1730160374652,0.064429,69882.0,69881.0,0.0714521]
[1730160374950,0.064431,69880.0,69879.0,0.07151584]
[1730160375142,0.064435,69876.0,69875.0,0.0343]
[1730160375342,0.064435,69876.0,69875.0,0.11981202]
[1730160375539,0.064435,69876.0,69875.0,0.11899139]
[1730160376147,0.064435,69876.0,69875.0,0.11897344]
[1730160376363,0.066435,69876.0,69875.0,0.12697344]
[1730160376846,0.066435,69876.0,69875.0,0.15710944]
[1730160376847,0.1566675,69876.0,69875.0,0.15710944]
[1730160377551,0.1566675,69876.0,69875.0,0.072436]
[1730160377942,0.1566675,69876.0,69875.0,0.008]
[1730160378844,0.2575475,69876.0,69875.0,0.008]
[1730160381147,0.27808058,69876.0,69875.0,0.008]
[1730160383349,0.27808058,69876.0,69875.0,0.06513693]
[1730160383552,0.63888058,69876.0,69875.0,0.008]
[1730160398154,1.06820058,69876.0,69875.0,0.008]
[1730160398348,1.06820058,69876.0,69865.0,0.04285052]
[1730160398559,0.0902325,69867.0,69866.0,0.04282223]
[1730160398755,0.064444,69866.0,69865.0,0.04282223]
[1730160398957,0.0902325,69867.0,69864.0,0.04282223]
[1730160399151,0.1546775,69865.0,69864.0,0.04282223]
[1730160399756,0.1546775,69865.0,69863.0,0.064447]
[1730160400147,0.1546775,69865.0,69864.0,0.064446]
[1730160400658,0.1556775,69865.0,69864.0,0.064446]
[1730160401053,0.1566775,69865.0,69864.0,0.065446]
[1730160401657,0.1566775,69865.0,69864.0,0.001]
[1730160402758,0.1556775,69865.0,69864.0,0.001]
[1730160402959,0.1566775,69865.0,69864.0,0.001]
[1730160403157,0.1566775,69865.0,69864.0,0.04385895]
[1730160403961,0.17688331,69865.0,69864.0,0.04385895]
[1730160404662,0.17688331,69865.0,69864.0,0.001]
[1730160404866,0.064446,69864.0,69861.0,0.05718058]
[1730160405159,0.06445,69859.0,69858.0,0.09752192]
[1730160406964,0.06545,69859.0,69858.0,0.09752192]
[1730160408062,0.06645,69859.0,69858.0,0.09752192]
[1730160410265,0.06645,69859.0,69858.0,0.18775442]
[1730160411058,0.16725,69859.0,69858.0,0.18775442]
[1730160411867,0.06645,69859.0,69858.0,0.18775442]
[1730160412067,0.16725,69859.0,69858.0,0.18775442]
[1730160413173,0.002,69859.0,69858.0,0.18775442]
[1730160413366,0.1028,69859.0,69858.0,0.27247211]
[1730160414173,0.002,69859.0,69858.0,0.27247211]
[1730160414656,0.1028,69859.0,69858.0,0.27247211]
[1730160414862,0.002,69859.0,69858.0,0.27247211]
[1730160415063,0.1028,69859.0,69858.0,0.27247211]
[1730160417263,0.002,69859.0,69858.0,0.27247211]
[1730160417465,0.1008,69867.0,69862.0,0.064448]
[1730160417674,0.1008,69867.0,69866.0,0.0902325]
[1730160417874,0.1008,69871.0,69869.0,0.064441]
[1730160418070,0.1008,69871.0,69869.0,0.1546735]
[1730160418584,0.4616,69870.0,69869.0,0.1546735]
[1730160419171,0.4626,69870.0,69869.0,0.1546735]
[1730160419578,0.3618,69870.0,69869.0,0.1546735]
[1730160419778,0.4626,69870.0,69869.0,0.1546735]
[1730160420470,0.4636,69870.0,69869.0,0.1906735]
[1730160421278,0.3628,69870.0,69869.0,0.1906735]
[1730160425689,0.4530325,69870.0,69869.0,0.100441]
[1730160426091,0.5174725,69870.0,69869.0,0.25621495]
[1730160426483,0.5174725,69870.0,69869.0,0.17198734]
[1730160426881,0.5174725,69870.0,69869.0,0.07254634]
[1730160428287,0.42724,69870.0,69869.0,0.07254634]
[1730160428476,0.5174725,69870.0,69869.0,0.07254634]
[1730160431079,0.53830699,69870.0,69869.0,0.001]
[1730160432492,0.63898699,69870.0,69869.0,0.001]
[1730160433488,0.72921949,69870.0,69869.0,0.001]
[1730160433692,0.72921949,69870.0,69858.0,0.064451]
[1730160433693,1.15857949,69870.0,69858.0,0.064451]
[1730160433886,0.06445,69859.0,69856.0,0.07154634]
[1730160434092,0.10068,69858.0,69856.0,0.03255326]
[1730160434392,0.10068,69858.0,69855.0,0.00214702]
[1730160434589,0.165132,69858.0,69857.0,0.064452]
[1730160434784,0.10068,69858.0,69855.0,0.00214702]
[1730160434988,0.064453,69856.0,69855.0,0.09237952]
[1730160435284,0.064453,69856.0,69855.0,0.17714711]
[1730160435684,0.064453,69856.0,69855.0,0.24160111]
[1730160436093,0.064453,69856.0,69855.0,0.06760102]
[1730160436291,0.064453,69856.0,69855.0,0.15783352]
[1730160437587,0.065453,69856.0,69855.0,0.09337952]
[1730160438290,0.066453,69856.0,69855.0,0.09337952]
[1730160440993,0.066453,69856.0,69855.0,0.00314702]
[1730160441495,0.1566855,69856.0,69855.0,0.00314702]
[1730160442196,0.1566855,69856.0,69855.0,0.001]
[1730160442988,0.1556855,69856.0,69855.0,0.00367465]
[1730160443193,0.1566855,69856.0,69855.0,0.00367465]
[1730160444202,0.066453,69856.0,69855.0,0.00367465]
[1730160444505,0.002,69856.0,69855.0,0.06812865]
[1730160444689,0.001,69856.0,69855.0,0.06812865]
[1730160444894,0.002,69856.0,69855.0,0.06812865]
[1730160445091,0.002,69856.0,69855.0,0.15836115]
[1730160446293,0.002,69856.0,69855.0,0.17924754]
[1730160446494,0.002,69856.0,69855.0,0.22662486]
[1730160446802,0.002,69856.0,69855.0,0.58662486]
[1730160446997,0.002,69856.0,69855.0,0.56573847]
[1730160447397,0.002,69856.0,69855.0,0.20573847]
[1730160447796,0.002,69856.0,69855.0,0.06812865]
[1730160448198,0.066453,69856.0,69855.0,0.06812865]
[1730160448517,0.066453,69856.0,69855.0,0.29036368]
[1730160448518,0.002,69856.0,69855.0,0.29036368]
[1730160448998,0.002,69856.0,69855.0,0.15275386]
[1730160449300,0.066453,69856.0,69855.0,0.08829986]
[1730160449701,0.066453,69856.0,69855.0,0.15275386]
[1730160450204,0.066453,69856.0,69855.0,0.06812865]
[1730160450599,0.20406282,69856.0,69855.0,0.00367465]
[1730160451294,0.066453,69856.0,69855.0,0.00367465]
[1730160452308,0.167133,69856.0,69855.0,0.00367465]
[1730160453607,0.18748608,69856.0,69855.0,0.00367465]
[1730160454804,0.18548608,69856.0,69855.0,0.00267465]
[1730160455104,0.18548608,69856.0,69855.0,0.00367465]
[1730160466021,0.12103308,69856.0,69849.0,0.17450092]
[1730160466221,0.064459,69851.0,69850.0,0.064458]
[1730160466522,0.064459,69851.0,69850.0,0.1547768]
[1730160467521,0.064459,69851.0,69850.0,0.0903188]
[1730160467713,0.065459,69851.0,69850.0,0.0903188]
[1730160468820,0.066459,69851.0,69850.0,0.0903188]
[1730160474223,0.064461,69848.0,69847.0,0.0715798]
[1730160474520,0.064461,69848.0,69847.0,0.15691813]
[1730160474723,0.165061,69848.0,69847.0,0.15691813]
[1730160475417,0.166061,69848.0,69847.0,0.15691813]
[1730160476706,0.166061,69848.0,69847.0,0.08533833]
[1730160476910,0.167061,69848.0,69847.0,0.08533833]
[1730160480415,0.167061,69848.0,69847.0,0.17565713]
[1730160481413,0.167061,69848.0,69847.0,0.08533833]
[1730160481414,0.27751682,69848.0,69847.0,0.08533833]
[1730160481614,0.27751682,69848.0,69847.0,0.15720598]
[1730160481814,0.064461,69847.0,69846.0,0.07164585]
[1730160482019,0.064461,69847.0,69841.0,0.08791941]
[1730160482020,0.064463,69845.0,69844.0,0.07164585]
[1730160482326,0.064466,69842.0,69841.0,0.07379347]
[1730160482711,0.064466,69842.0,69841.0,0.00214762]
[1730160482916,0.0903188,69842.0,69838.0,0.07164585]
[1730160483119,0.3608,69843.0,69832.0,0.131775]
[1730160483120,0.1547878,69839.0,69837.0,0.07164585]
[1730160483321,0.06447,69838.0,69836.0,0.07164585]
[1730160483529,0.0903188,69839.0,69834.0,0.0903188]
[1730160483530,0.4614,69837.0,69834.0,0.07164585]
[1730160483726,0.4614,69837.0,69833.0,0.21515661]
[1730160483727,0.064473,69834.0,69833.0,0.07164585]
[1730160484428,0.064473,69834.0,69833.0,0.15767005]
[1730160484627,0.0903188,69835.0,69832.0,0.0326]
[1730160484628,0.0903188,69835.0,69832.0,0.10424585]
[1730160484823,0.064474,69833.0,69832.0,0.10424585]
[1730160485021,0.064474,69833.0,69832.0,0.19016065]
[1730160485423,0.064474,69833.0,69832.0,0.0326]
[1730160486220,0.0903188,69833.0,69831.0,0.064476]
[1730160486418,0.064476,69831.0,69829.0,0.19696465]
[1730160486828,0.064476,69831.0,69829.0,0.1253188]
[1730160487224,0.064476,69831.0,69829.0,0.035]
[1730160487433,0.064476,69831.0,69830.0,0.0903188]
[1730160487637,0.064477,69830.0,69829.0,0.035]
[1730160487825,0.064477,69830.0,69829.0,0.1253188]
[1730160488835,0.064477,69830.0,69829.0,0.0903188]
[1730160489325,0.065477,69830.0,69829.0,0.0903188]
[1730160489728,0.066477,69830.0,69829.0,0.0903188]
[1730160491639,0.066477,69830.0,69829.0,0.1474837]
[1730160492039,0.066477,69830.0,69829.0,0.0903188]
[1730160492239,0.066477,69830.0,69828.0,0.04398484]
[1730160492531,0.066477,69830.0,69829.0,0.0903188]
[1730160492726,0.427277,69830.0,69829.0,0.0903188]
[1730160493243,0.426277,69830.0,69829.0,0.0903188]
[1730160493425,0.427277,69830.0,69829.0,0.0903188]
[1730160493939,0.426277,69830.0,69829.0,0.0903188]
[1730160494132,0.526797,69830.0,69828.0,0.064479]
[1730160494323,0.527797,69830.0,69829.0,0.0903188]
[1730160495924,0.526797,69830.0,69829.0,0.0903188]
[1730160496125,0.527797,69830.0,69829.0,0.0903188]
[1730160497137,0.002,69830.0,69829.0,0.1547968]
[1730160497340,0.10252,69830.0,69829.0,0.1547968]
[1730160497933,0.002,69830.0,69829.0,0.1547968]
[1730160498135,0.002,69830.0,69829.0,0.22644265]
[1730160498442,0.002,69830.0,69829.0,0.23988373]
[1730160498640,0.002,69830.0,69829.0,0.59988373]
[1730160500233,0.002,69830.0,69829.0,0.23988373]
[1730160501646,0.002,69830.0,69829.0,0.26008923]
[1730160503740,0.002,69830.0,69829.0,0.23988373]
[1730160503949,0.002,69830.0,69827.0,0.4518388]
[1730160503950,0.002,69830.0,69828.0,0.07146407]
[1730160504240,0.064481,69826.0,69824.0,0.0345]
[1730160504841,0.064481,69826.0,69824.0,0.1248188]
[1730160505038,0.064481,69826.0,69823.0,0.136183]
[1730160505344,0.064481,69826.0,69825.0,0.0903188]
[1730160505945,0.3628,69830.0,69826.0,0.064481]
[1730160506147,0.06448,69828.0,69827.0,0.0903188]
[1730160506638,0.06448,69828.0,69825.0,0.0903188]
[1730160506839,0.06448,69827.0,69825.0,0.0903188]
[1730160507044,0.06448,69827.0,69824.0,0.064483]
[1730160507443,0.06448,69827.0,69826.0,0.0903188]
[1730160508542,0.06448,69827.0,69826.0,0.1547998]
[1730160508743,0.06548,69827.0,69826.0,0.1547998]
[1730160509144,0.06648,69827.0,69826.0,0.1547998]
[1730160509443,0.06648,69827.0,69826.0,0.22626387]
[1730160509649,0.002,69827.0,69826.0,0.22626387]
[1730160509952,0.002,69827.0,69826.0,0.24085681]
[1730160510450,0.00182273,69827.0,69826.0,0.24085681]
[1730160510845,0.06630273,69827.0,69826.0,0.24085681]
[1730160511054,0.06630273,69827.0,69826.0,0.1576085]
[1730160511249,0.16682273,69827.0,69826.0,0.1576085]
[1730160511448,0.16682273,69827.0,69826.0,0.08605701]
[1730160513249,0.06630273,69827.0,69826.0,0.15053801]
[1730160513446,0.00182273,69827.0,69826.0,0.67049681]
[1730160513644,0.00182273,69827.0,69826.0,0.7562686]
[1730160513852,0.00182273,69827.0,69826.0,0.75639975]
[1730160514545,0.00182273,69827.0,69826.0,0.67049681]
[1730160516355,0.00182273,69827.0,69826.0,0.69077605]
[1730160517350,0.00182273,69827.0,69826.0,0.77668018]
[1730160517547,0.3608,69830.0,69829.0,0.064478]
[1730160517747,0.3608,69830.0,69829.0,0.15053501]
[1730160518654,0.3618,69830.0,69829.0,0.18473501]
[1730160519046,0.3628,69830.0,69829.0,0.18473501]
[1730160524853,0.3628,69830.0,69829.0,0.08291418]
[1730160525752,0.3628,69830.0,69829.0,0.14739218]
[1730160526153,0.3628,69830.0,69829.0,0.11319218]
[1730160526965,0.427277,69830.0,69829.0,0.1203071]
[1730160527455,0.427277,69830.0,69829.0,0.07159292]
[1730160529259,0.427277,69830.0,69827.0,0.0903188]
[1730160529960,0.427277,69830.0,69829.0,0.064478]
[1730160530262,0.3628,69830.0,69829.0,0.064478]
[1730160530453,0.46324,69830.0,69829.0,0.064478]
[1730160530758,0.46224,69830.0,69829.0,0.064478]
[1730160530963,0.46324,69830.0,69829.0,0.064478]
[1730160531365,0.46324,69830.0,69829.0,0.065478]
[1730160531564,0.46224,69830.0,69829.0,0.065478]
[1730160531762,0.46324,69830.0,69829.0,0.065478]
[1730160531961,0.3628,69830.0,69829.0,0.065478]
[1730160532267,0.46324,69830.0,69829.0,0.065478]
[1730160532450,0.46324,69830.0,69829.0,0.066478]
[1730160533167,0.3628,69830.0,69829.0,0.066478]
[1730160533362,0.46324,69830.0,69829.0,0.066478]
[1730160537073,0.46324,69830.0,69829.0,0.1567968]
[1730160537074,0.527717,69830.0,69829.0,0.1567968]
[1730160537866,0.527717,69830.0,69829.0,0.066478]
[1730160539877,0.527717,69830.0,69829.0,0.15212483]
[1730160541165,0.527717,69830.0,69829.0,0.15213029]
[1730160541460,0.54861336,69830.0,69829.0,0.15213029]
[1730160542068,0.54861336,69830.0,69829.0,0.08765229]
[1730160542273,0.54861336,69830.0,69829.0,0.0736698]
[1730160542465,0.54861336,69830.0,69829.0,0.002]
[1730160547076,0.18781336,69830.0,69829.0,0.002]
[1730160547279,0.54861336,69830.0,69829.0,0.002]
[1730160548677,0.44817336,69830.0,69829.0,0.002]
[1730160548863,0.54849336,69830.0,69829.0,0.002]
[1730160550279,0.63881216,69830.0,69829.0,0.002]
[1730160551963,0.54849336,69830.0,69829.0,0.002]
[1730160552376,0.54849336,69830.0,69829.0,0.0923188]
[1730160552777,0.527597,69830.0,69829.0,0.0923188]
[1730160552965,0.427277,69830.0,69829.0,0.0903188]
[1730160553169,0.527597,69830.0,69829.0,0.0903188]
[1730160553480,0.54795595,69830.0,69829.0,0.0903188]
[1730160553871,0.44763595,69830.0,69829.0,0.1547968]
[1730160554071,0.54795595,69830.0,69829.0,0.064478]
[1730160557177,0.44763595,69830.0,69829.0,0.064478]
[1730160557384,0.527597,69830.0,69829.0,0.064478]
[1730160557880,0.427277,69830.0,69829.0,0.064478]
[1730160558070,0.527597,69830.0,69829.0,0.064478]
[1730160558273,0.527597,69830.0,69829.0,0.14955076]
[1730160560383,0.427277,69830.0,69829.0,0.14955076]
[1730160560582,0.527597,69830.0,69829.0,0.14955076]
[1730160561378,0.527597,69830.0,69829.0,0.064478]
[1730160563082,0.427277,69830.0,69829.0,0.064478]
[1730160563285,0.527597,69830.0,69829.0,0.064478]
[1730160564788,0.002,69830.0,69829.0,0.23558413]
[1730160565095,0.002,69830.0,69829.0,0.14963417]
[1730160565281,0.002,69830.0,69829.0,0.25074218]
[1730160565602,0.002,69830.0,69829.0,0.68034218]
[1730160565891,0.3608,69838.0,69837.0,0.1547898]
[1730160566093,0.3608,69838.0,69837.0,0.23994597]
[1730160567089,0.3618,69838.0,69837.0,0.23994597]
[1730160567280,0.3628,69838.0,69837.0,0.23994597]
[1730160567977,0.3628,69838.0,69837.0,0.75982477]
[1730160568381,0.3628,69838.0,69837.0,0.66950597]
[1730160568586,0.002,69838.0,69837.0,0.66950597]
[1730160569192,0.002,69838.0,69837.0,0.69015874]
[1730160569972,0.002,69838.0,69837.0,0.26059874]
[1730160572881,0.064456,69854.0,69837.0,0.92977086]
[1730160573190,0.064456,69854.0,69851.0,0.1547768]
[1730160573191,0.10032,69852.0,69851.0,0.1547768]
[1730160573587,0.10032,69853.0,69852.0,0.064457]
[1730160574788,0.10032,69853.0,69852.0,0.12161026]
[1730160575390,0.10032,69853.0,69852.0,0.064457]
[1730160575808,0.10032,69853.0,69852.0,0.10728714]
[1730160576002,0.10232,69853.0,69852.0,0.064457]
[1730160576193,0.002,69853.0,69852.0,0.064457]
[1730160576383,0.002,69853.0,69852.0,0.10727842]
[1730160576587,0.002,69853.0,69852.0,0.064457]
[1730160576886,0.004,69853.0,69852.0,0.064457]
[1730160577285,0.004,69853.0,69852.0,0.12155099]
[1730160577491,0.004,69853.0,69852.0,0.064457]
[1730160582100,0.004,69853.0,69852.0,0.0903188]
[1730160582492,0.004,69853.0,69846.0,0.04279126]
[1730160582493,0.06446,69849.0,69846.0,0.04279126]
[1730160582697,0.4511188,69847.0,69846.0,0.04279126]
[1730160582993,0.064462,69846.0,69845.0,0.04279126]
[1730160583198,0.064463,69845.0,69844.0,0.04279126]
[1730160583401,0.064464,69844.0,69843.0,0.04279126]
[1730160584701,0.065464,69844.0,69843.0,0.002]
[1730160585004,0.001,69844.0,69843.0,0.002]
[1730160585208,0.002,69844.0,69843.0,0.004]
[1730160585815,0.066464,69844.0,69843.0,0.004]
[1730160587203,0.066464,69844.0,69843.0,0.06109399]
[1730160588405,0.066464,69844.0,69843.0,0.06110975]
[1730160588603,0.066464,69844.0,69843.0,0.004]
[1730160589103,0.066464,69844.0,69843.0,0.06111087]
[1730160590604,0.066464,69844.0,69843.0,0.004]
[1730160592512,0.002,69844.0,69843.0,0.429265]
[1730160592698,0.002,69844.0,69843.0,0.789265]
[1730160593399,0.002,69844.0,69843.0,0.86059184]
[1730160593601,0.002,69844.0,69843.0,0.94483147]
[1730160593797,0.002,69844.0,69843.0,0.58483147]
[1730160594107,0.002,69844.0,69843.0,0.50059184]
[1730160594512,0.002,69844.0,69843.0,0.51351515]
[1730160601806,0.002,69844.0,69843.0,0.51340961]
[1730160606415,0.002,69844.0,69843.0,0.5134558]
[1730160606615,0.002,69844.0,69843.0,0.59933182]
[1730160606805,0.002,69844.0,69843.0,0.5134558]
[1730160607909,0.002,69844.0,69843.0,0.59933182]
[1730160608407,0.002,69844.0,69843.0,0.68965024]
[1730160608613,0.002,69844.0,69843.0,0.60377422]
[1730160608817,0.002,69844.0,69843.0,0.68965024]
[1730160609019,0.002,69844.0,69843.0,0.60377422]
[1730160610523,0.002,69844.0,69843.0,0.68965024]
[1730160611015,0.002,69844.0,69843.0,0.24297422]
[1730160611406,0.002,69844.0,69843.0,0.24313094]
[1730160611729,0.002,69844.0,69843.0,0.32898247]
[1730160611912,0.002,69844.0,69843.0,0.17019905]
[1730160612217,0.002,69844.0,69843.0,0.23910645]
[1730160612514,0.002,69844.0,69843.0,0.33959316]
[1730160619917,0.002,69844.0,69843.0,0.23910645]
[1730160620512,0.002,69844.0,69843.0,0.14878803]
[1730160620718,0.002,69844.0,69843.0,0.23910645]
[1730160621020,0.002,69844.0,69843.0,0.15478342]
[1730160621418,0.064466,69842.0,69841.0,0.3608]
[1730160621613,0.064466,69842.0,69832.0,0.09246631]
[1730160621614,0.064474,69833.0,69832.0,0.00214789]
[1730160621920,0.064474,69833.0,69825.0,0.12865768]
[1730160621921,0.54547224,69833.0,69825.0,0.12865768]
[1730160622118,0.51559942,69826.0,69825.0,0.12865768]
[1730160622812,0.61563942,69826.0,69825.0,0.12865768]
[1730160623213,0.61663942,69826.0,69825.0,0.12865768]
[1730160623921,0.61763942,69826.0,69825.0,0.12865768]
[1730160624318,0.55315842,69826.0,69825.0,0.04285582]
[1730160624622,0.55315842,69826.0,69819.0,0.05717132]
[1730160624623,0.064483,69824.0,69819.0,0.05717132]
[1730160624825,0.064482,69825.0,69823.0,0.04285372]
[1730160625021,0.064483,69824.0,69823.0,0.04285372]
[1730160625217,0.064483,69824.0,69822.0,0.04285372]
[1730160626242,0.001,69824.0,69823.0,0.064484]
[1730160626620,0.002,69824.0,69823.0,0.064484]
[1730160626920,0.001,69824.0,69823.0,0.064484]
[1730160627112,0.10208,69824.0,69823.0,0.064484]